lending/lending_fUSD_20250913
["ID","MTS","AMOUNT","RATE_DAILY","PERIOD"]
[385296673,1757754647718,-543.8,0.00031617,2]
[385296674,1757754647727,-445.67,0.00031617,2]
[385296675,1757754647737,-594.96,0.00031617,2]
[385296676,1757754647749,-617.86,0.00031617,2]
[385296677,1757754647759,-884.28,0.00031617,2]
[385296678,1757754647769,-1137.51,0.00031617,2]
[385296679,1757754647779,-516.14,0.00031617,2]
[385296680,1757754647790,-733.35,0.00031617,2]
[385296681,1757754647800,-400.0,0.00031617,2]
[385296682,1757754647810,-400.0,0.00031618,2]
[385296683,1757754647819,-400.0,0.00031618,2]
[385296684,1757754647830,-400.0,0.00031618,2]
[385296685,1757754647840,-405.27473855,0.00031618,2]
[385296686,1757754647851,-403.37803129,0.00031618,2]
[385296688,1757754647861,-511.19718746,0.00031618,2]
[385296689,1757754647870,-500.0,0.00031618,14]
[385296690,1757754647880,-400.0,0.00031618,2]
[385296691,1757754647889,-400.0,0.00031618,2]
[385296692,1757754647899,-400.0,0.00031618,2]
[385296693,1757754647908,-400.0,0.00031618,2]
[385296694,1757754647918,-400.0,0.00031618,2]
[385296695,1757754647927,-400.0,0.00031618,2]
[385296696,1757754647938,-472.95,0.00031618,2]
[385296697,1757754647949,-437.15,0.00031618,2]
[385296698,1757754647959,-400.0,0.00031618,2]
[385296699,1757754647968,-428.0,0.00031618,2]
[385296700,1757754647977,-400.0,0.00031618,2]
[385296701,1757754647986,-403.81333233,0.00031618,2]
[385296702,1757754647995,-400.0,0.00031618,2]
[385296703,1757754648005,-400.0,0.00031618,2]
[385296704,1757754648014,-400.0,0.00031618,2]
[385296705,1757754648023,-400.0,0.00031618,2]
[385296706,1757754648033,-400.0,0.00031618,2]
[385296707,1757754648042,-400.0,0.00031618,2]
[385296708,1757754648051,-400.0,0.00031618,2]
[385296709,1757754648060,-400.0,0.00031618,2]
[385296710,1757754648070,-400.0,0.00031618,2]
[385296711,1757754648079,-400.0,0.00031618,2]
[385296712,1757754648089,-400.0,0.00031618,2]
[385296713,1757754648098,-400.0,0.00031618,2]
[385296714,1757754648108,-400.0,0.00031618,2]
[385296715,1757754648117,-539.69,0.00031618,2]
[385296716,1757754648127,-400.0,0.00031618,2]
[385296717,1757754648137,-400.0,0.00031618,2]
[385296718,1757754648146,-400.0,0.00031618,2]
[385296719,1757754648155,-400.0,0.00031618,2]
[385296720,1757754648164,-403.2710166,0.00031618,2]
[385296721,1757754648174,-404.1410257,0.00031618,2]
[385296722,1757754648184,-400.0,0.00031618,2]
[385296723,1757754648193,-400.0,0.00031618,2]
[385296724,1757754648202,-400.0,0.00031618,2]
[385296725,1757754648211,-400.0,0.00031618,2]
[385296726,1757754648221,-400.0,0.00031618,2]
[385296727,1757754648231,-400.0,0.00031618,2]
[385296728,1757754648241,-400.0,0.00031618,2]
[385296729,1757754648251,-400.0,0.00031618,2]
[385296730,1757754648261,-400.0,0.00031618,2]
[385296731,1757754648270,-610.37,0.00031618,2]
[385296732,1757754648280,-400.0,0.00031618,2]
[385296733,1757754648290,-400.0,0.00031618,2]
[385296734,1757754648300,-400.0,0.00031618,2]
[385296736,1757754648309,-400.0,0.00031618,2]
[385296737,1757754648318,-558.46,0.00031618,2]
[385296738,1757754648328,-590.22,0.00031618,2]
[385296739,1757754648337,-400.0,0.00031618,2]
[385296740,1757754648347,-400.0,0.00031618,2]
[385296741,1757754648357,-400.0,0.00031618,2]
[385296742,1757754648367,-400.0,0.00031618,2]
[385296743,1757754648376,-400.0,0.00031618,2]
[385296744,1757754648385,-400.0,0.00031618,2]
[385296745,1757754648395,-429.65,0.00031618,2]
[385296746,1757754648404,-400.0,0.00031618,2]
[385296747,1757754648413,-518.35508531,0.00031618,2]
[385296748,1757754648423,-400.0,0.00031618,2]
[385296749,1757754648432,-479.38,0.00031618,2]
[385296750,1757754648441,-400.0,0.00031618,2]
[385296751,1757754648451,-408.93441957,0.00031618,2]
[385296752,1757754648460,-400.0,0.00031618,2]
[385296753,1757754648469,-400.0,0.00031618,2]
[385296754,1757754648479,-400.0,0.00031618,2]
[385296755,1757754648492,-405.7396197,0.00031618,2]
[385296756,1757754648502,-400.0,0.00031618,2]
[385296757,1757754648511,-400.0,0.00031618,2]
[385296758,1757754648521,-400.0,0.00031618,2]
[385296759,1757754648530,-400.0,0.00031618,2]
[385296760,1757754648539,-400.0,0.00031618,2]
[385296761,1757754648549,-400.0,0.00031618,2]
[385296762,1757754648558,-557.92,0.00031618,2]
[385296763,1757754648567,-400.0,0.00031618,2]
[385296764,1757754648576,-400.0,0.00031618,2]
[385296765,1757754648586,-400.0,0.00031618,2]
[385296766,1757754648595,-400.0,0.00031618,2]
[385296767,1757754648605,-403.80711314,0.00031618,2]
[385296768,1757754648615,-483.35,0.00031618,2]
[385296769,1757754648624,-403.77775374,0.00031618,2]
[385296770,1757754648634,-400.0,0.00031618,2]
[385296771,1757754648644,-408.96516685,0.00031618,2]
[385296772,1757754648653,-401.36520812,0.00031618,2]
[385296773,1757754648663,-400.0,0.00031618,2]
[385296774,1757754648672,-400.0,0.00031618,2]
[385296776,1757754648681,-400.0,0.00031618,2]
[385296777,1757754648690,-400.0,0.00031618,2]
[385296778,1757754648699,-400.0,0.00031618,2]
[385296779,1757754648708,-400.0,0.00031618,2]
[385296780,1757754648717,-400.0,0.00031618,2]
[385296781,1757754648727,-400.0,0.00031618,2]
[385296782,1757754648736,-400.0,0.00031618,2]
[385296783,1757754648750,-400.0,0.00031618,2]
[385296784,1757754648760,-401.15284559,0.00031618,2]
[385296785,1757754648770,-400.0,0.00031618,2]
[385296786,1757754648780,-400.0,0.00031618,2]
[385296787,1757754648791,-400.0,0.00031618,2]
[385296789,1757754648800,-400.0,0.00031618,2]
[385296790,1757754648810,-400.0,0.00031618,2]
[385296791,1757754648820,-400.0,0.00031618,2]
[385296792,1757754648831,-609.56,0.00031618,2]
[385296793,1757754648840,-400.0,0.00031618,2]
[385296794,1757754648851,-419.66475991,0.00031618,2]
[385296795,1757754648861,-400.0,0.00031618,2]
[385296796,1757754648871,-400.0,0.00031618,2]
[385296797,1757754648880,-400.0,0.00031618,2]
[385296798,1757754648889,-400.0,0.00031618,2]
[385296799,1757754648899,-400.0,0.00031618,2]
[385296800,1757754648908,-479.02,0.00031618,2]
[385296801,1757754648918,-427.05,0.00031618,2]
[385296802,1757754648927,-229.04344959,0.00031618,2]
[385296803,1757754648936,-400.0,0.00031618,2]
[385296804,1757754648945,-400.0,0.00031618,2]
[385296805,1757754648955,-400.0,0.00031618,2]
[385296806,1757754648964,-400.0,0.00031618,2]
[385296807,1757754648974,-519.28,0.00031618,2]
[385296808,1757754648983,-630.48,0.00031618,2]
[385296809,1757754648993,-400.0,0.00031618,2]
[385296810,1757754649003,-400.0,0.00031618,2]
[385296811,1757754649012,-607.45,0.00031618,2]
[385296812,1757754649022,-400.0,0.00031618,2]
[385296813,1757754649031,-400.0,0.00031618,2]
[385296814,1757754649041,-583.93,0.00031618,2]
[385296815,1757754649050,-400.0,0.00031618,2]
[385296816,1757754649061,-400.0,0.00031618,2]
[385296817,1757754649070,-400.0,0.00031618,2]
[385296818,1757754649079,-400.0,0.00031618,2]
[385296819,1757754649089,-400.0,0.00031618,2]
[385296820,1757754649098,-400.0,0.00031618,2]
[385296821,1757754649107,-400.0,0.00031618,2]
[385296822,1757754649117,-409.69336111,0.00031618,2]
[385296823,1757754649126,-531.13290229,0.00031618,2]
[385296824,1757754649135,-400.0,0.00031618,2]
[385296825,1757754649144,-400.0,0.00031618,2]
[385296826,1757754649154,-400.0,0.00031618,2]
[385296827,1757754649163,-400.0,0.00031618,2]
[385296829,1757754649173,-400.0,0.00031618,2]
[385296830,1757754649185,-400.0,0.00031618,2]
[385296831,1757754649195,-400.0,0.00031618,2]
[385296832,1757754649205,-401.75353878,0.00031618,2]
[385296833,1757754649215,-402.79632416,0.00031618,2]
[385296834,1757754649224,-400.0,0.00031618,2]
[385296835,1757754649233,-400.0,0.00031618,2]
[385296836,1757754649242,-400.0,0.00031618,2]
[385296837,1757754649252,-400.0,0.00031618,2]
[385296839,1757754649262,-400.0,0.00031618,2]
[385296840,1757754649271,-400.0,0.00031618,2]
[385296841,1757754649280,-400.0,0.00031618,2]
[385296842,1757754649497,-400.0,0.00031618,2]
[385296843,1757754649506,-400.0,0.00031618,2]
[385296844,1757754649515,-400.0,0.00031618,2]
[385296845,1757754649525,-300.0,0.00031618,2]
[385296846,1757754649535,-588.4,0.00031618,2]
[385296847,1757754649545,-400.0,0.00031618,2]
[385296848,1757754649554,-400.0,0.00031618,2]
[385296849,1757754649564,-400.0,0.00031618,2]
[385296850,1757754649573,-400.0,0.00031618,2]
[385296851,1757754649582,-400.0,0.00031618,2]
[385296852,1757754649591,-618.02,0.00031618,2]
[385296853,1757754649602,-400.0,0.00031618,2]
[385296854,1757754649611,-408.74798521,0.00031618,2]
[385296855,1757754649621,-400.0,0.00031618,2]
[385296856,1757754649630,-400.0,0.00031618,2]
[385296857,1757754649640,-418.9,0.00031618,2]
[385296859,1757754649650,-453.08,0.00031618,2]
[385296860,1757754649659,-400.0,0.00031618,2]
[385296861,1757754649669,-400.0,0.00031618,2]
[385296862,1757754649678,-400.0,0.00031618,2]
[385296863,1757754649688,-400.0,0.00031618,2]
[385296864,1757754649698,-400.0,0.00031618,2]
[385296865,1757754649707,-400.0,0.00031618,2]
[385296867,1757754649716,-400.0,0.00031618,2]
[385296868,1757754649726,-400.0,0.00031618,2]
[385296869,1757754649736,-400.0,0.00031618,2]
[385296870,1757754649749,-400.0,0.00031618,2]
[385296871,1757754649758,-674.6,0.00031618,2]
[385296872,1757754649768,-400.0,0.00031618,2]
[385296873,1757754649777,-589.63,0.00031618,2]
[385296874,1757754649787,-555.34,0.00031618,2]
[385296875,1757754649796,-400.0,0.00031618,2]
[385296876,1757754649806,-400.0,0.00031618,2]
[385296877,1757754649816,-400.0,0.00031618,2]
[385296878,1757754649828,-400.0,0.00031618,2]
[385296879,1757754649838,-400.0,0.00031618,2]
[385296880,1757754649847,-400.0,0.00031618,2]
[385296881,1757754649858,-722.37,0.00031618,2]
[385296882,1757754649868,-400.0,0.00031618,2]
[385296883,1757754649878,-557.7,0.00031618,2]
[385296884,1757754649887,-400.0,0.00031618,2]
[385296885,1757754649897,-400.0,0.00031618,2]
[385296886,1757754649906,-532.16,0.00031618,2]
[385296887,1757754649917,-400.0,0.00031618,2]
[385296888,1757754649926,-590.8,0.00031618,2]
[385296889,1757754649935,-403.79200251,0.00031618,2]
[385296890,1757754649946,-581.14,0.00031618,2]
[385296891,1757754649955,-400.0,0.00031618,2]
[385296892,1757754649965,-694.2,0.00031618,2]
[385296893,1757754649975,-400.0,0.00031618,2]
[385296894,1757754649984,-478.05,0.00031618,2]
[385296895,1757754649993,-426.94,0.00031618,2]
[385296896,1757754650002,-400.0,0.00031618,2]
[385296897,1757754650012,-400.0,0.00031618,2]
[385296898,1757754650021,-400.0,0.00031618,2]
[385296899,1757754650031,-400.0,0.00031618,2]
[385296900,1757754650041,-746.3,0.00031618,2]
[385296901,1757754650050,-574.0,0.00031618,2]
[385296902,1757754650060,-400.0,0.00031618,2]
[385296903,1757754650069,-672.59,0.00031618,2]
[385296904,1757754650079,-400.0,0.00031618,2]
[385296905,1757754650089,-400.0,0.00031618,2]
[385296906,1757754650099,-400.0,0.00031618,2]
[385296907,1757754650109,-465.08,0.00031618,2]
[385296908,1757754650119,-400.0,0.00031618,2]
[385296909,1757754650129,-400.0,0.00031618,2]
[385296910,1757754650138,-400.0,0.00031618,2]
[385296911,1757754650148,-400.0,0.00031618,2]
[385296912,1757754650157,-543.4,0.00031618,2]
[385296913,1757754650167,-400.0,0.00031618,2]
[385296915,1757754650176,-569.53,0.00031618,2]
[385296916,1757754650185,-833.9,0.00031618,2]
[385296917,1757754650195,-400.0,0.00031618,2]
[385296919,1757754650205,-400.0,0.00031618,2]
[385296920,1757754650215,-400.0,0.00031618,2]
[385296921,1757754650224,-504.29902987,0.00031618,2]
[385296922,1757754650234,-400.0,0.00031618,2]
[385296923,1757754650243,-400.0,0.00031618,2]
[385296924,1757754650253,-400.0,0.00031618,2]
[385296925,1757754650262,-599.51,0.00031618,2]
[385296926,1757754650272,-400.0,0.00031618,2]
[385296927,1757754650283,-400.0,0.00031618,2]
[385296928,1757754650293,-400.0,0.00031618,2]
[385296929,1757754650302,-400.0,0.00031618,2]
[385296930,1757754650312,-400.0,0.00031618,2]
[385296931,1757754650322,-689.5,0.00031618,2]
[385296932,1757754650331,-400.0,0.00031618,2]
[385296933,1757754650341,-400.0,0.00031618,2]
[385296934,1757754650350,-670.69,0.00031618,2]
[385296935,1757754650360,-400.0,0.00031618,2]
[385296936,1757754650370,-698.01,0.00031618,2]
[385296937,1757754650379,-1169.88,0.00031618,2]
[385296938,1757754650389,-400.0,0.00031618,2]
[385296939,1757754650399,-404.95263573,0.00031618,2]
[385296940,1757754650408,-400.0,0.00031618,2]
[385296941,1757754650418,-400.0,0.00031618,2]
[385296942,1757754650427,-400.0,0.00031618,2]
[385296943,1757754650437,-400.0,0.00031618,2]
[385296944,1757754650446,-702.28,0.00031618,2]
[385296945,1757754650455,-568.96,0.00031618,2]
[385296946,1757754650465,-400.0,0.00031618,2]
[385296947,1757754650475,-400.0,0.00031618,2]
[385296948,1757754650484,-400.0,0.00031618,2]
[385296949,1757754650493,-615.1,0.00031618,2]
[385296950,1757754650503,-999.6,0.00031618,2]
[385296951,1757754650512,-400.0,0.00031618,2]
[385296952,1757754650522,-400.0,0.00031618,2]
[385296953,1757754650531,-400.0,0.00031618,2]
[385296954,1757754650541,-400.0,0.00031618,2]
[385296955,1757754650550,-400.0,0.00031618,2]
[385296956,1757754650560,-400.0,0.00031618,2]
[385296957,1757754650569,-481.73,0.00031618,2]
[385296958,1757754650579,-400.0,0.00031618,2]
[385296959,1757754650588,-665.9,0.00031618,2]
[385296960,1757754650597,-578.93,0.00031618,2]
[385296961,1757754650607,-400.0,0.00031618,2]
[385296962,1757754650616,-404.04715256,0.00031618,2]
[385296964,1757754650626,-400.0,0.00031618,2]
[385296965,1757754650635,-400.0,0.00031618,2]
[385296966,1757754650644,-400.0,0.00031618,2]
[385296968,1757754650655,-400.0,0.00031618,2]
[385296969,1757754650664,-390.37487353,0.00031618,2]
[385296970,1757754650674,-400.0,0.00031618,2]
[385296971,1757754650683,-727.62,0.00031618,2]
[385296972,1757754650693,-656.15,0.00031618,2]
[385296973,1757754650704,-425.65,0.00031618,2]
[385296974,1757754650715,-400.0,0.00031618,2]
[385296975,1757754650725,-400.0,0.00031618,2]
[385296976,1757754650735,-687.05,0.00031618,2]
[385296977,1757754650747,-400.0,0.00031618,2]
[385296978,1757754650757,-400.0,0.00031618,2]
[385296979,1757754650766,-404.91788663,0.00031618,2]
[385296980,1757754650776,-449.5,0.00031618,2]
[385296981,1757754650788,-400.0,0.00031618,2]
[385296982,1757754650798,-400.0,0.00031618,2]
[385296983,1757754650809,-666.49,0.00031618,2]
[385296984,1757754650819,-400.0,0.00031618,2]
[385296985,1757754650829,-400.0,0.00031618,2]
[385296986,1757754650839,-400.0,0.00031618,2]
[385296987,1757754650848,-400.0,0.00031618,2]
[385296988,1757754650858,-400.0,0.00031618,2]
[385296989,1757754650868,-484.6,0.00031618,2]
[385296990,1757754650878,-598.58,0.00031618,2]
[385296991,1757754650888,-400.0,0.00031618,2]
[385296992,1757754650898,-400.0,0.00031618,2]
[385296993,1757754650908,-400.0,0.00031618,2]
[385296994,1757754650918,-400.0,0.00031618,2]
[385296995,1757754650927,-400.0,0.00031618,2]
[385296996,1757754650937,-567.93,0.00031618,2]
[385296997,1757754650947,-400.0,0.00031618,2]
[385296998,1757754650956,-400.0,0.00031618,2]
[385296999,1757754650965,-400.0,0.00031618,2]
[385297000,1757754650975,-400.0,0.00031618,2]
[385297001,1757754650984,-400.0,0.00031618,2]
[385297002,1757754650994,-400.0,0.00031618,2]
[385297003,1757754651003,-359.86160552,0.00031618,2]
[385297004,1757754651013,-400.0,0.00031618,2]
[385297005,1757754651022,-400.0,0.00031618,2]
[385297006,1757754651032,-400.0,0.00031618,2]
[385297007,1757754651042,-400.0,0.00031618,2]
[385297008,1757754651051,-400.0,0.00031618,2]
[385297009,1757754651061,-400.0,0.00031618,2]
[385297011,1757754651070,-646.98,0.00031618,2]
[385297012,1757754651079,-400.0,0.00031618,2]
[385297013,1757754651089,-400.0,0.00031618,2]
[385297014,1757754651098,-400.0,0.00031618,2]
[385297016,1757754651109,-300.0,0.00031618,2]
[385297017,1757754651118,-400.0,0.00031618,2]
[385297018,1757754651127,-400.0,0.00031618,2]
[385297019,1757754651137,-648.24,0.00031618,2]
[385297020,1757754651146,-400.0,0.00031618,2]
[385297021,1757754651156,-400.0,0.00031618,2]
[385297022,1757754651166,-400.0,0.00031618,2]
[385297023,1757754651176,-400.0,0.00031618,2]
[385297024,1757754651186,-683.96,0.00031618,2]
[385297025,1757754651195,-889.32,0.00031618,2]
[385297026,1757754651205,-400.0,0.00031618,2]
[385297027,1757754651214,-400.0,0.00031618,2]
[385297028,1757754651224,-400.0,0.00031618,2]
[385297029,1757754651234,-400.0,0.00031618,2]
[385297030,1757754651243,-745.06,0.00031618,2]
[385297031,1757754651253,-400.0,0.00031618,2]
[385297032,1757754651262,-400.0,0.00031618,2]
[385297033,1757754651272,-400.0,0.00031618,2]
[385297034,1757754651282,-400.0,0.00031618,2]
[385297035,1757754651292,-582.24,0.00031618,2]
[385297036,1757754651301,-679.7,0.00031618,2]
[385297037,1757754651312,-400.0,0.00031618,2]
[385297038,1757754651323,-408.24307931,0.00031618,2]
[385297039,1757754651332,-1202.74,0.00031618,2]
[385297040,1757754651342,-400.0,0.00031618,2]
[385297041,1757754651353,-400.0,0.00031618,2]
[385297042,1757754651362,-402.98854382,0.00031618,2]
[385297043,1757754651372,-400.0,0.00031618,2]
[385297044,1757754651383,-540.14,0.00031618,2]
[385297045,1757754651393,-2663.19,0.00031618,2]
[385297046,1757754651404,-400.0,0.00031618,2]
[385297047,1757754651414,-400.0,0.00031618,2]
[385297048,1757754651423,-1235.3,0.00031618,2]
[385297049,1757754651433,-400.0,0.00031618,2]
[385297050,1757754651443,-686.85,0.00031618,2]
[385297051,1757754651453,-400.0,0.00031618,2]
[385297052,1757754651463,-400.0,0.00031618,2]
[385297053,1757754651473,-998.09,0.00031618,2]
[385297054,1757754651484,-400.0,0.00031618,2]
[385297055,1757754651494,-599.43,0.00031618,2]
[385297056,1757754651504,-400.0,0.00031618,2]
[385297057,1757754651513,-854.55,0.00031618,2]
[385297058,1757754651523,-400.0,0.00031618,2]
[385297059,1757754651532,-400.0,0.00031618,2]
[385297060,1757754651542,-400.0,0.00031618,2]
[385297061,1757754651551,-400.0,0.00031618,2]
[385297062,1757754651561,-425.85,0.00031618,2]
[385297064,1757754651570,-400.0,0.00031618,2]
[385297065,1757754651579,-400.0,0.00031618,2]
[385297066,1757754651589,-400.0,0.00031618,2]
[385297067,1757754651598,-631.19,0.00031618,2]
[385297068,1757754651608,-400.0,0.00031618,2]
[385297069,1757754651617,-400.0,0.00031618,2]
[385297070,1757754651627,-400.0,0.00031618,2]
[385297071,1757754651636,-400.0,0.00031618,2]
[385297072,1757754651646,-400.0,0.00031618,2]
[385297073,1757754651655,-673.51,0.00031618,2]
[385297074,1757754651665,-400.0,0.00031618,2]
[385297075,1757754651674,-400.0,0.00031618,2]
[385297076,1757754651683,-632.21,0.00031618,2]
[385297077,1757754651693,-400.0,0.00031618,2]
[385297078,1757754651702,-523.37,0.00031618,2]
[385297079,1757754651711,-404.78950343,0.00031618,2]
[385297080,1757754651720,-656.49,0.00031618,2]
[385297081,1757754651729,-2461.05,0.00031618,2]
[385297082,1757754651739,-400.0,0.00031618,2]
[385297083,1757754651751,-400.0,0.00031618,2]
[385297084,1757754651760,-400.0,0.00031618,2]
[385297085,1757754651770,-400.0,0.00031618,2]
[385297086,1757754651855,-606.98,0.00031618,2]
[385297087,1757754651865,-514.59,0.00031618,2]
[385297088,1757754651875,-622.76,0.00031618,2]
[385297089,1757754651884,-178.78285679,0.00031618,120]
[385297090,1757754651893,-400.0,0.00031618,2]
[385297091,1757754651902,-400.0,0.00031618,2]
[385297092,1757754651911,-400.0,0.00031618,2]
[385297093,1757754651919,-400.0,0.00031618,2]
[385297094,1757754651928,-400.0,0.00031618,2]
[385297095,1757754651937,-400.0,0.00031618,2]
[385297096,1757754651946,-560.53,0.00031618,2]
[385297097,1757754651955,-511.42049356,0.00031618,2]
[385297098,1757754651964,-400.0,0.00031618,2]
[385297099,1757754651973,-770.42,0.00031618,2]
[385297100,1757754651982,-400.0,0.00031618,2]
[385297101,1757754651991,-400.0,0.00031618,2]
[385297103,1757754651999,-685.11,0.00031618,2]
[385297104,1757754652009,-400.0,0.00031618,2]
[385297105,1757754652017,-400.0,0.00031618,2]
[385297106,1757754652026,-743.19,0.00031618,2]
[385297107,1757754652035,-400.0,0.00031618,2]
[385297108,1757754652044,-557.69,0.00031618,2]
[385297109,1757754652053,-400.0,0.00031618,2]
[385297110,1757754652062,-400.0,0.00031618,2]
[385297111,1757754652071,-408.23157771,0.00031618,2]
[385297112,1757754652081,-400.0,0.00031618,2]
[385297113,1757754652091,-400.0,0.00031618,2]
[385297114,1757754652100,-400.0,0.00031618,2]
[385297115,1757754652109,-635.79,0.00031618,2]
[385297116,1757754652118,-400.0,0.00031618,2]
[385297117,1757754652127,-400.0,0.00031618,2]
[385297118,1757754652136,-400.0,0.00031618,2]
[385297119,1757754652146,-400.0,0.00031618,2]
[385297120,1757754652155,-753.94,0.00031618,2]
[385297121,1757754652165,-400.0,0.00031618,2]
[385297122,1757754652174,-400.0,0.00031618,2]
[385297123,1757754652183,-400.0,0.00031618,2]
[385297124,1757754652193,-723.08,0.00031618,2]
[385297125,1757754652202,-151.0,0.00031618,7]
[385297126,1757754652211,-400.0,0.00031618,2]
[385297127,1757754652220,-482.08,0.00031618,2]
[385297128,1757754652229,-677.68,0.00031618,2]
[385297129,1757754652238,-400.0,0.00031618,2]
[385297130,1757754652247,-400.0,0.00031618,2]
[385297131,1757754652256,-400.0,0.00031618,2]
[385297132,1757754652265,-400.0,0.00031618,2]
[385297133,1757754652274,-1088.23,0.00031618,2]
[385297134,1757754652282,-400.0,0.00031618,2]
[385297135,1757754652291,-402.73093276,0.00031618,2]
[385297136,1757754652300,-400.0,0.00031618,2]
[385297137,1757754652309,-400.0,0.00031618,2]
[385297138,1757754652319,-575.23,0.00031618,2]
[385297139,1757754652327,-193.820258,0.00031618,7]
[385297140,1757754652336,-494.93,0.00031618,2]
[385297141,1757754652345,-408.52797377,0.00031618,2]
[385297142,1757754652355,-193.820258,0.00031618,7]
[385297143,1757754652363,-193.820258,0.00031618,7]
[385297144,1757754652372,-400.0,0.00031618,2]
[385297145,1757754652381,-193.820258,0.00031618,7]
[385297146,1757754652390,-400.0,0.00031618,2]
[385297147,1757754652399,-400.0,0.00031618,2]
[385297148,1757754652408,-400.0,0.00031618,2]
[385297149,1757754652418,-400.0,0.00031618,2]
[385297150,1757754652427,-400.0,0.00031618,2]
[385297151,1757754652437,-633.37,0.00031618,2]
[385297152,1757754652446,-400.0,0.00031618,2]
[385297153,1757754652455,-400.0,0.00031618,2]
[385297154,1757754652463,-400.0,0.00031618,2]
[385297155,1757754652473,-400.0,0.00031618,2]
[385297156,1757754652481,-858.53,0.00031618,2]
[385297157,1757754652490,-400.0,0.00031618,2]
[385297158,1757754652499,-400.0,0.00031618,2]
[385297159,1757754652508,-403.42101224,0.00031618,2]
[385297160,1757754652517,-400.0,0.00031618,2]
[385297161,1757754652526,-556.75,0.00031618,2]
[385297162,1757754652534,-403.51609899,0.00031618,2]
[385297163,1757754652543,-209.98386,0.00031618,7]
[385297164,1757754652552,-400.0,0.00031618,2]
[385297165,1757754652561,-623.36,0.00031618,2]
[385297166,1757754652570,-400.0,0.00031618,2]
[385297167,1757754652578,-452.89,0.00031618,2]
[385297168,1757754652587,-400.0,0.00031618,2]
[385297169,1757754652597,-400.0,0.00031618,2]
[385297170,1757754652606,-400.0,0.00031618,2]
[385297171,1757754652615,-400.0,0.00031618,2]
[385297172,1757754652623,-4723.4765,0.00031626,2]
[385297173,1757754652632,-168.0,0.0003167,7]
[385297174,1757754652641,-4597.87230746,0.0003167,2]
[385297175,1757754652651,-9465.30399153,0.0003167,2]
[385297176,1757754652660,-8997.6376483,0.0003168,2]
[385297177,1757754652669,-4597.87230746,0.00031688,2]
[385297178,1757754652678,-4597.87230746,0.00031696,2]
[385297179,1757754652687,-9465.30399153,0.00031696,2]
[385297180,1757754652696,-4597.87230746,0.00031696,2]
[385297181,1757754652706,-4597.87230746,0.00031697,2]
[385297182,1757754652715,-9465.30399153,0.00031697,2]
[385297183,1757754652723,-22989.3615373,0.00031698,2]
[385297184,1757754652733,-18930.6079831,0.00031698,2]
[385297185,1757754652743,-3087.84,0.000317,3]
[385297186,1757754652754,-197.425494,0.00031706,7]
[385297187,1757754652764,-13793.6169224,0.00031706,2]
[385297188,1757754652775,-18930.6079831,0.00031706,2]